bitfinex/quotes_SOLUSD_20250928
["timestamp","ask_amount","ask_price","bid_price","bid_amount"]
[1759100417144,0.66,210.27,210.24,30.75646879]
[1759100417546,0.66,210.27,210.24,4.75646879]
[1759100418049,37.94,210.29,210.24,4.75646879]
[1759100418239,0.66,210.28,210.24,4.75646879]
[1759100419036,39.65925162,210.29,210.22,4.75678822]
[1759100419241,39.65925162,210.29,209.98,79.3]
[1759100419242,2.37925162,210.26,210.18,38.58437072]
[1759100419548,0.66,210.25,210.2,4.75721764]
[1759100419728,2.37925162,210.26,210.2,4.75721764]
[1759100419729,37.28,210.24,210.2,4.75721764]
[1759100419934,2.37925162,210.26,210.21,0.69]
[1759100420132,37.28,210.25,210.22,0.69]
[1759100420441,37.28,210.25,210.23,4.75669504]
[1759100421032,14.25559401,210.3,210.24,0.65]
[1759100421232,37.26,210.29,210.24,0.65]
[1759100421748,0.66,210.29,210.24,0.65]
[1759100421941,37.26,210.28,210.24,0.65]
[1759100422334,37.92,210.28,210.25,4.75624256]
[1759100422727,37.26,210.28,210.25,5.40624256]
[1759100422931,37.26,210.28,210.26,0.65]
[1759100423132,37.26,210.31,210.27,0.65]
[1759100424532,0.86,210.33,210.27,0.65]
[1759100424738,37.26,210.32,210.28,4.755564]
[1759100425237,37.26,210.32,210.28,0.65]
[1759100425758,0.2,210.33,210.29,0.65]
[1759100425934,0.2,210.33,210.3,0.65]
[1759100426139,0.2,210.33,210.27,16.64526359]
[1759100426335,0.2,210.33,210.3,0.65]
[1759100426541,0.2,210.33,210.31,0.65]
[1759100426855,0.2,210.33,210.32,4.75465956]
[1759100427233,0.2,210.33,210.31,4.75469459]
[1759100427643,0.2,210.33,210.31,5.40469459]
[1759100427840,0.2,210.33,210.31,4.75469459]
[1759100428648,0.2,210.33,210.3,4.75511174]
[1759100429253,0.2,210.33,210.31,0.65]
[1759100429434,0.2,210.33,210.3,16.6428911]
[1759100429435,0.2,210.33,210.32,0.65]
[1759100429632,0.2,210.33,210.3,4.75511174]
[1759100429633,0.66,210.32,210.3,4.75511174]
[1759100429838,0.66,210.31,210.28,4.755564]
[1759100430040,37.26,210.32,210.28,4.755564]
[1759100430241,37.26,210.32,210.28,5.405564]
[1759100430536,0.2,210.33,210.29,0.65]
[1759100430765,0.2,210.33,210.3,16.6428911]
[1759100430935,0.2,210.33,210.31,0.65]
[1759100431137,0.2,210.33,210.32,26.65]
[1759100431844,0.2,210.33,210.32,26.0]
[1759100432752,0.2,210.33,210.32,30.75465956]
[1759100432954,0.86,210.33,210.3,26.0]
[1759100433156,0.2,210.33,210.28,4.755564]
[1759100433353,0.86,210.33,210.29,0.65]
[1759100433662,0.66,210.32,210.28,4.755564]
[1759100433858,0.66,210.31,210.28,4.755564]
[1759100434056,0.86,210.33,210.28,5.405564]
[1759100434237,0.66,210.32,210.28,5.405564]
[1759100434435,0.66,210.32,210.28,16.64447402]
[1759100434642,0.66,210.31,210.27,4.75568412]
[1759100434842,0.86,210.33,210.27,31.40568412]
[1759100435042,0.2,210.33,210.28,0.65]
[1759100435259,0.2,210.33,210.29,0.65]
[1759100435759,0.2,210.33,210.3,0.65]
[1759100436255,0.2,210.33,210.28,0.65]
[1759100436438,0.2,210.33,210.3,0.65]
[1759100437241,0.2,210.33,210.31,5.40488564]
[1759100437562,0.2,210.33,210.32,0.65]
[1759100439245,0.2,210.33,210.32,5.40465956]
[1759100442067,0.2,210.33,210.32,4.75465956]
[1759100442458,0.2,210.33,210.32,5.40465956]
[1759100443151,0.2,210.33,210.32,4.75465956]
[1759100443760,0.2,210.33,210.3,16.64269807]
[1759100443950,0.2,210.33,210.31,0.65]
[1759100444454,0.2,210.33,210.32,0.65]
[1759100445046,0.2,210.33,210.32,26.65]
[1759100445549,0.2,210.33,210.32,26.0]
[1759100445750,0.86,210.33,210.32,4.75465956]
[1759100445950,0.2,210.33,210.32,5.40465956]
[1759100446367,0.2,210.33,210.32,4.75465956]
[1759100447274,0.86,210.33,210.32,4.75465956]
[1759100447459,0.2,210.33,210.32,4.75465956]
[1759100447665,0.2,210.33,210.32,5.40465956]
[1759100447859,0.2,210.33,210.32,4.75465956]
[1759100448568,0.86,210.33,210.3,4.75511174]
[1759100448773,0.2,210.33,210.3,5.40511174]
[1759100449154,0.86,210.33,210.3,16.6428911]
[1759100449574,0.66,210.32,210.3,4.75511174]
[1759100449762,0.66,210.32,210.27,16.64515866]
[1759100449962,0.66,210.32,210.28,0.65]
[1759100450168,0.66,210.32,210.27,16.64515866]
[1759100450469,0.2,210.33,210.28,0.65]
[1759100450855,0.72,210.32,210.28,0.65]
[1759100451057,0.72,210.32,210.27,16.64515866]
[1759100451274,0.2,210.33,210.27,17.34515866]
[1759100451492,0.72,210.31,210.27,16.64515866]
[1759100451658,14.51559401,210.33,210.27,16.64515866]
[1759100452175,0.72,210.32,210.27,16.64515866]
[1759100452375,0.72,210.32,210.27,17.34515866]
[1759100452582,0.72,210.31,210.27,17.34515866]
[1759100453071,0.2,210.33,210.28,0.7]
[1759100454177,0.2,210.33,210.29,16.64368252]
[1759100454381,0.2,210.33,210.3,0.7]
[1759100454877,0.2,210.33,210.31,0.7]
[1759100455675,0.2,210.33,210.32,0.7]
[1759100455976,0.2,210.33,210.3,0.7]
[1759100456169,0.2,210.33,210.31,4.75488564]
[1759100456361,0.2,210.33,210.32,0.7]
[1759100456560,0.2,210.33,210.29,0.7]
[1759100456763,0.2,210.33,210.3,0.7]
[1759100457158,0.2,210.33,210.31,0.7]
[1759100457763,0.2,210.33,210.32,0.7]
[1759100458284,0.2,210.33,210.32,5.45465956]
[1759100459764,0.2,210.33,210.32,4.75465956]
[1759100459970,0.2,210.33,210.32,5.45465956]
[1759100460275,0.2,210.33,210.32,4.75465956]
[1759100460478,0.2,210.33,210.32,5.45465956]
[1759100460677,0.2,210.33,210.32,31.45465956]
[1759100461372,0.92,210.33,210.26,0.7]
[1759100461764,0.92,210.33,210.27,16.6452656]
[1759100462084,0.92,210.33,210.27,17.3452656]
[1759100462380,0.72,210.32,210.27,17.3452656]
[1759100462581,0.72,210.32,210.27,16.6452656]
[1759100462785,0.72,210.32,210.28,0.7]
[1759100462975,0.2,210.33,210.31,26.0]
[1759100463174,0.1,210.35,210.34,26.0]
[1759100463366,1e-08,210.35,210.34,26.0]
[1759100463569,1e-08,210.35,210.34,26.7]
[1759100463767,1e-08,210.35,210.34,31.45420747]
[1759100465583,1e-08,210.35,210.34,4.75420747]
[1759100465773,1e-08,210.35,210.32,17.34109183]
[1759100467162,1e-08,210.35,210.32,16.64109183]
[1759100467377,1e-08,210.35,210.32,17.34109183]
[1759100467778,1e-08,210.35,210.33,0.7]
[1759100468685,1e-08,210.35,210.34,0.7]
[1759100468857,1e-08,210.35,210.32,16.64109183]
[1759100469062,1e-08,210.35,210.33,0.7]
[1759100469685,1e-08,210.35,210.34,5.45420747]
[1759100470782,0.10083164,210.35,210.34,5.45420747]
[1759100471282,0.08571047,210.36,210.34,43.14962821]
[1759100471283,1e-08,210.36,210.34,43.14962821]
[1759100471487,1e-08,210.37,210.36,26.0]
[1759100471973,1e-08,210.38,210.37,26.0]
[1759100472175,1e-08,210.38,210.37,26.72]
[1759100473082,1e-08,210.38,210.37,26.0]
[1759100473395,1e-08,210.38,210.37,26.72]
[1759100473969,1e-08,210.38,210.37,31.47352949]
[1759100474301,1e-08,210.38,210.37,30.75352949]
[1759100474497,1e-08,210.38,210.37,4.75352949]
[1759100474664,1e-08,210.38,210.37,5.47352949]
[1759100477469,1e-08,210.38,210.37,31.47352949]
[1759100481481,1e-08,210.38,210.37,68.67352949]
[1759100481688,1e-08,210.38,210.37,31.47352949]
[1759100481990,1e-08,210.38,210.37,68.67352949]
[1759100483532,0.10071033,210.4,210.39,26.0]
[1759100484108,0.10071033,210.4,210.39,63.87]
[1759100484781,0.10071033,210.4,210.39,26.0]
[1759100484989,0.10071033,210.4,210.3,4.86462414]
[1759100484990,0.79071033,210.4,210.25,28.65]
[1759100485302,0.69,210.39,210.28,4.755564]
[1759100485506,0.69,210.38,210.32,26.0]
[1759100485673,0.69,210.37,210.32,26.0]
[1759100485998,0.69,210.36,210.32,0.67]
[1759100486187,0.69,210.37,210.32,0.67]
[1759100486384,0.10071033,210.4,210.32,0.67]
[1759100486583,0.69,210.39,210.33,26.0]
[1759100486785,0.10071033,210.4,210.34,0.67]
[1759100487005,0.79071033,210.4,210.34,0.67]
[1759100487385,0.79071033,210.4,210.35,16.63893509]
[1759100487596,0.79071033,210.4,210.35,17.30893509]
[1759100488087,0.69,210.39,210.35,4.75398145]
[1759100488397,0.69,210.38,210.33,4.75422506]
[1759100488589,0.69,210.37,210.33,4.75422506]
[1759100488794,0.69,210.36,210.33,4.75422506]
[1759100489484,0.10071033,210.4,210.33,4.75422506]
[1759100489681,0.69,210.39,210.33,16.64030883]
[1759100489905,0.69,210.38,210.33,16.64030883]
[1759100490202,0.69,210.37,210.33,16.64030883]
[1759100490892,0.08648641,210.34,210.33,16.64030883]
[1759100491705,0.08648641,210.34,210.33,12.55608377]
[1759100493187,0.09435985,210.35,210.33,12.55608377]
[1759100493408,0.09435985,210.35,210.34,26.67]
[1759100493790,0.09895432,210.37,210.34,43.30972615]
[1759100493989,0.09895432,210.37,210.35,0.67]
[1759100494386,0.09895432,210.37,210.36,0.67]
[1759100495806,0.09895432,210.37,210.36,5.42375546]
[1759100497091,0.09438273,210.38,210.37,26.0]
[1759100497488,0.09438273,210.38,210.37,26.67]
[1759100497694,0.09438273,210.38,210.37,30.75352949]
[1759100498011,0.09438273,210.38,210.37,31.42352949]
[1759100498408,0.02308148,210.38,210.37,31.42352949]
[1759100498709,0.02308148,210.38,210.37,30.75352949]
[1759100500488,0.02308148,210.38,210.37,31.42352949]
[1759100506499,0.02308148,210.38,210.37,30.75352949]
[1759100506704,0.02308148,210.38,210.37,31.42352949]
[1759100506913,0.02308148,210.38,210.37,30.75352949]
[1759100507109,0.02308148,210.38,210.37,31.42352949]
[1759100507428,0.02308148,210.38,210.37,30.75352949]
[1759100508794,0.71308148,210.38,210.37,30.75352949]
[1759100509218,0.02308148,210.38,210.37,30.75352949]
[1759100509407,0.02308148,210.38,210.37,31.42352949]
[1759100509720,0.02308148,210.38,210.37,68.76352949]
[1759100510711,0.19317858,210.39,210.37,31.42352949]
[1759100510911,0.19317858,210.39,210.38,38.04]
[1759100511320,0.19317858,210.39,210.38,0.7]
[1759100511516,0.19317858,210.39,210.38,38.04]
[1759100511699,0.19317858,210.39,210.38,0.7]
[1759100511901,0.09268488,210.39,210.38,38.02]
[1759100512102,0.08939462,210.4,210.38,38.02]
[1759100512312,0.08939462,210.4,210.37,42.63735322]
[1759100512313,0.08939462,210.4,210.39,38.02]
[1759100513021,0.08939462,210.4,210.39,42.77307761]
[1759100513222,0.09436461,210.41,210.39,42.75307761]
[1759100513421,1e-08,210.41,210.4,38.0]
[1759100513726,1e-08,210.41,210.4,0.7]
[1759100513920,1e-08,210.41,210.4,38.0]
[1759100514302,0.08815986,210.43,210.4,0.7]
[1759100514620,3.19856217,210.51,210.44,26.0]
[1759100514810,0.7,210.51,210.48,26.0]
[1759100515119,3.89856217,210.51,210.48,26.0]
[1759100515328,3.89856217,210.54,210.5,26.0]
[1759100515502,3.89856217,210.53,210.48,64.02]
[1759100515702,0.7,210.53,210.48,26.7]
[1759100515904,0.7,210.53,210.49,37.3]
[1759100516321,0.7,210.52,210.48,26.0]
[1759100516524,0.7,210.51,210.46,3.19856217]
[1759100516706,0.7,210.5,210.46,3.19856217]
[1759100516909,0.7,210.49,210.47,4.75127096]
[1759100517417,0.7,210.48,210.47,4.75127096]
[1759100517601,0.7,210.51,210.47,16.62944837]
[1759100517807,0.7,210.5,210.47,16.62944837]
[1759100518223,0.7,210.49,210.47,16.62944837]
[1759100518416,0.7,210.48,210.47,16.62944837]
[1759100518612,0.7,210.5,210.47,16.62944837]
[1759100518814,0.7,210.5,210.47,11.87817741]
[1759100519231,0.7,210.49,210.47,11.87817741]
[1759100519522,0.7,210.49,210.45,16.63102873]
[1759100519933,0.7,210.51,210.45,17.33102873]
[1759100521719,0.7,210.51,210.45,54.61102873]
[1759100522419,0.7,210.53,210.46,0.7]
[1759100522931,0.1,210.55,210.47,16.62944837]
[1759100523227,0.1,210.55,210.48,0.7]
[1759100523617,0.1,210.55,210.48,37.98]
[1759100523811,0.1,210.55,210.47,16.62944837]
[1759100524117,0.1,210.55,210.49,0.7]
[1759100524931,0.1,210.55,210.5,16.62707838]
[1759100525128,0.8,210.55,210.5,17.32707838]
[1759100525737,0.1,210.55,210.51,0.7]
[1759100526048,0.1,210.55,210.5,16.62707838]
[1759100526216,0.1,210.55,210.52,0.7]
[1759100526416,0.1,210.55,210.5,17.32707838]
[1759100526625,0.1,210.55,210.51,0.7]
[1759100526815,0.8,210.55,210.51,0.7]
[1759100527017,0.1,210.55,210.52,16.62549876]
[1759100527321,0.8,210.55,210.52,16.62549876]
[1759100529016,0.1,210.55,210.52,16.62549876]
[1759100529231,0.1,210.55,210.49,37.22]
[1759100529232,0.1,210.55,210.5,4.75044005]
[1759100529435,0.1,210.6,210.53,26.0]
[1759100529817,0.8,210.6,210.54,0.7]
[1759100530010,0.8,210.6,210.55,26.0]
[1759100530211,0.1,210.6,210.55,26.7]
[1759100530423,0.1,210.6,210.56,0.7]
[1759100530626,0.1,210.6,210.57,0.7]
[1759100530932,0.1,210.6,210.55,0.7]
[1759100531234,0.1,210.6,210.56,0.7]
[1759100531738,0.68,210.59,210.55,4.74946568]
[1759100531923,0.1,210.6,210.54,14.28061406]
[1759100531924,0.68,210.58,210.54,19.03028972]
[1759100532120,0.1,210.6,210.54,19.03028972]
[1759100532121,0.68,210.57,210.54,19.03028972]
[1759100532324,0.68,210.57,210.54,4.74967566]
[1759100532932,0.68,210.57,210.53,16.62470906]
[1759100533335,0.68,210.58,210.53,17.33470906]
[1759100533539,0.68,210.57,210.53,17.33470906]
[1759100534134,0.68,210.59,210.53,17.33470906]
[1759100534334,0.68,210.58,210.53,17.33470906]
[1759100534538,3.05027867,210.57,210.51,4.75015227]
[1759100534728,2.37027867,210.54,210.48,4.75104522]
[1759100535044,0.68,210.53,210.47,11.87780093]
[1759100535426,0.68,210.52,210.47,11.87780093]
[1759100535745,0.68,210.51,210.47,11.87780093]
[1759100536151,0.68,210.51,210.47,12.58780093]
[1759100537067,2.37027867,210.51,210.47,4.75127096]
[1759100537358,3.05027867,210.51,210.47,4.75127096]
[1759100537727,0.68,210.5,210.45,4.75150311]
[1759100537953,2.37027867,210.48,210.45,4.75150311]
[1759100538134,2.37027867,210.48,210.41,12.59112593]
[1759100538135,3.05027867,210.47,210.42,4.75239996]
[1759100538336,3.05027867,210.47,210.4,4.75263756]
[1759100538530,26.0,210.49,210.33,23.771249]
[1759100538531,2.37027867,210.43,210.34,5.46420747]
[1759100538862,0.68,210.42,210.35,12.59474579]
[1759100539051,2.37027867,210.43,210.37,16.63735322]
[1759100539256,2.37027867,210.43,210.38,0.71]
[1759100539459,2.37027867,210.43,210.39,0.71]
[1759100539653,2.37027867,210.43,210.37,17.34735322]
[1759100539956,0.68,210.42,210.37,17.34735322]
[1759100540171,0.68,210.41,210.37,17.34735322]
[1759100540339,2.37027867,210.43,210.37,16.63735322]
[1759100540340,0.68,210.4,210.37,16.63735322]
[1759100540531,0.68,210.39,210.37,4.75352949]
[1759100541160,2.37027867,210.43,210.35,42.63893509]
[1759100541463,3.03027867,210.41,210.35,16.63893509]
[1759100542179,2.37027867,210.38,210.31,4.75488564]
[1759100542335,1.5187241,210.36,210.31,4.75488564]
[1759100542535,0.66,210.35,210.31,4.75488564]
[1759100543076,1.5187241,210.36,210.3,4.75511174]
[1759100543243,1.5187241,210.32,210.25,4.75624256]
[1759100543446,1.5187241,210.28,210.25,4.75624256]
[1759100543652,1.5187241,210.28,210.23,4.75650066]
[1759100543653,0.66,210.27,210.23,4.75650066]
[1759100543962,13.59559401,210.31,210.17,0.69]
[1759100543963,1.5187241,210.25,210.17,0.69]
[1759100544270,1.5187241,210.22,210.17,12.58499057]
[1759100544567,0.66,210.24,210.18,0.69]
[1759100545151,0.66,210.24,210.19,16.65160092]
[1759100545360,0.66,210.24,210.19,5.44760026]
[1759100545736,0.66,210.24,210.19,17.34160092]
[1759100546134,14.25559401,210.3,210.2,0.69]
[1759100546357,15.77431811,210.3,210.2,0.69]
[1759100546766,37.3,210.31,210.22,26.0]
[1759100547066,37.96,210.31,210.23,0.69]
[1759100547279,37.96,210.31,210.24,16.64764078]
[1759100547483,37.96,210.31,210.25,0.69]
[1759100547484,37.3,210.31,210.25,0.69]
[1759100548758,0.66,210.3,210.24,16.64764078]
[1759100551285,37.3,210.31,210.25,0.69]
[1759100551681,37.3,210.31,210.24,16.64764078]
[1759100551682,0.66,210.3,210.24,16.64764078]
[1759100552367,40.99312024,210.31,210.24,16.64764078]
[1759100552558,0.66,210.29,210.24,16.64764078]
[1759100552874,40.99312024,210.31,210.24,4.75646879]
[1759100552875,0.66,210.28,210.24,4.75646879]
[1759100553077,0.66,210.27,210.24,4.75646879]
[1759100553278,0.66,210.26,210.22,4.75671863]
[1759100553480,0.66,210.25,210.18,12.58427197]
[1759100553781,0.66,210.25,210.19,4.75760026]
[1759100554368,0.66,210.25,210.19,16.65160092]
[1759100554577,0.66,210.25,210.19,17.34160092]
[1759100556852,0.66,210.27,210.2,0.69]
[1759100557072,26.0,210.3,210.2,0.69]
[1759100557388,26.66,210.3,210.21,16.65001664]
[1759100557584,0.66,210.3,210.22,0.69]
[1759100558791,40.99312024,210.31,210.22,0.69]
[1759100559003,40.97312024,210.31,210.22,0.69]
[1759100559200,4.35312024,210.34,210.23,16.64843266]
[1759100559409,41.63312024,210.34,210.24,0.69]
[1759100561202,37.94,210.34,210.24,0.69]
[1759100561383,37.94,210.34,210.25,16.64684898]
[1759100561580,37.94,210.34,210.26,0.69]
[1759100562435,41.63312024,210.34,210.27,4.75579017]
[1759100562705,0.66,210.33,210.27,4.75579017]
[1759100562897,0.66,210.32,210.27,4.75579017]
[1759100563098,0.66,210.31,210.27,4.75579017]
[1759100564084,40.97312024,210.34,210.27,4.75579017]
[1759100564283,0.66,210.3,210.27,4.75579017]
[1759100564485,0.66,210.3,210.24,4.75646879]
[1759100564684,0.66,210.3,210.25,11.89034204]
[1759100564890,40.97312024,210.34,210.26,0.69]
[1759100564891,13.59559401,210.33,210.26,0.69]
[1759100565093,0.66,210.3,210.26,0.69]
[1759100565498,0.66,210.3,210.25,11.89034204]
[1759100565700,0.66,210.3,210.25,12.58034204]
[1759100566002,0.66,210.29,210.25,11.89034204]
[1759100566223,0.66,210.29,210.24,4.75646879]
[1759100566417,0.66,210.28,210.24,4.75646879]
[1759100566598,37.9,210.28,210.22,4.75679223]
[1759100566799,3.69312024,210.26,210.22,4.75679223]
[1759100566999,0.66,210.25,210.22,4.75679223]
[1759100567323,0.66,210.24,210.22,4.75679223]
[1759100567630,4.35312024,210.29,210.23,0.69]
[1759100567800,0.66,210.29,210.23,0.69]
[1759100567999,37.28,210.28,210.23,0.69]
[1759100568320,37.28,210.28,210.24,0.69]
[1759100569924,37.28,210.28,210.21,26.0]
[1759100570129,37.94,210.28,210.22,0.69]
[1759100571225,37.94,210.28,210.23,4.75669504]
[1759100571411,0.69,210.27,210.23,4.75669504]
[1759100571613,0.69,210.26,210.23,4.75669504]
[1759100571812,0.69,210.25,210.23,4.75669504]
[1759100573213,0.69,210.25,210.19,0.69]
[1759100573425,0.69,210.25,210.2,4.75737392]
[1759100573730,0.69,210.25,210.2,5.44737392]
[1759100573935,0.69,210.25,210.2,17.34080874]
[1759100574119,0.69,210.25,210.21,0.69]
[1759100575138,38.79990413,210.28,210.22,4.75692132]
[1759100575524,38.79990413,210.28,210.22,16.64922462]
[1759100575733,38.79990413,210.28,210.22,17.33922462]
[1759100577041,37.93,210.27,210.22,4.75692132]
[1759100577225,1.51990413,210.25,210.2,4.75737392]
[1759100577414,2.20990413,210.25,210.2,4.75737392]
[1759100577811,0.69,210.24,210.2,4.75737392]
[1759100578238,1.51990413,210.25,210.18,30.75777529]
[1759100578446,1.51990413,210.25,210.18,31.44777529]
[1759100578740,2.20990413,210.25,210.18,43.34234185]
[1759100579632,1.51990413,210.25,210.19,0.69]
[1759100580244,2.20990413,210.25,210.19,0.69]
[1759100580446,2.20990413,210.25,210.18,43.34234185]
[1759100580620,1.51990413,210.25,210.19,0.69]
[1759100581170,2.20990413,210.25,210.19,0.69]
[1759100581331,2.20990413,210.25,210.2,4.75737392]
[1759100581537,0.69,210.24,210.2,4.75737392]
[1759100582539,1.51990413,210.25,210.2,5.44737392]
[1759100582850,2.20990413,210.25,210.2,17.34080874]
[1759100583048,13.59559401,210.26,210.21,0.69]
[1759100583439,13.59559401,210.26,210.22,4.75692132]
[1759100583752,13.59559401,210.26,210.22,17.33922462]
[1759100584136,38.75990413,210.27,210.23,0.69]
[1759100584347,13.59559401,210.29,210.24,0.69]
[1759100584555,37.26,210.28,210.24,0.69]
[1759100584934,37.26,210.28,210.22,16.64922462]
[1759100585151,37.26,210.29,210.23,0.69]
[1759100585843,37.26,210.29,210.24,16.64764078]
[1759100586034,37.26,210.29,210.25,0.69]
[1759100586236,37.26,210.29,210.26,0.69]
[1759100586842,37.26,210.29,210.24,16.64764078]
[1759100587051,37.26,210.29,210.25,0.69]
[1759100587257,37.26,210.29,210.26,0.69]
[1759100587764,0.69,210.37,210.27,16.6452656]
[1759100587930,40.44418658,210.36,210.28,0.69]
[1759100588129,3.20418658,210.35,210.28,0.69]
[1759100588442,37.93,210.36,210.28,0.69]
[1759100588653,3.20487946,210.35,210.28,0.69]
[1759100588864,37.93,210.36,210.28,0.69]
[1759100589062,3.20487992,210.35,210.28,0.69]
[1759100589266,37.24,210.36,210.28,0.69]
[1759100589468,14.28559401,210.35,210.28,0.69]
[1759100589766,37.24,210.36,210.29,16.64368252]
[1759100589972,37.24,210.36,210.3,0.69]
[1759100590157,37.93,210.36,210.3,0.69]
[1759100590359,37.24,210.36,210.3,0.69]
[1759100590763,37.93,210.36,210.3,0.69]
[1759100590968,37.93,210.36,210.29,16.64368252]
[1759100591165,1.51990413,210.34,210.24,26.0]
[1759100591371,1.51990413,210.28,210.25,4.75624256]
[1759100591669,37.3,210.27,210.22,0.69]
[1759100591858,37.3,210.27,210.15,0.2]
[1759100591859,1.51990413,210.25,210.16,4.7582794]
[1759100592066,1.51990413,210.22,210.16,17.34397791]
[1759100592371,38.83990413,210.22,210.19,26.0]
[1759100593294,37.32,210.22,210.2,5.44737392]
[1759100593574,37.3,210.24,210.21,0.69]
[1759100593750,0.7,210.29,210.23,26.0]
[1759100593957,38.83990413,210.28,210.23,26.0]
[1759100594187,38.83990413,210.28,210.23,26.69]
[1759100594348,41.01391612,210.28,210.23,26.69]
[1759100594974,41.71391612,210.28,210.23,26.0]
[1759100595162,41.71391612,210.28,210.24,4.75646879]
[1759100595663,41.01391612,210.28,210.24,4.75646879]
[1759100596378,41.01391612,210.28,210.24,16.64764078]
[1759100596567,41.01391612,210.28,210.24,17.33764078]
[1759100596770,41.01391612,210.28,210.24,16.64764078]
[1759100597571,41.71391612,210.28,210.24,16.64764078]
[1759100597967,41.71391612,210.28,210.24,4.75646879]
[1759100598177,0.7,210.27,210.24,4.75646879]
[1759100599481,0.7,210.27,210.23,11.89155186]
[1759100600478,0.7,210.27,210.22,4.75692132]
[1759100600780,3.69391612,210.25,210.22,4.75692132]
[1759100600984,37.28,210.24,210.22,4.75692132]
[1759100601361,38.0,210.24,210.22,4.75692132]
[1759100601864,37.28,210.24,210.2,16.65080874]
[1759100604077,37.26,210.23,210.2,16.65080874]
[1759100605284,5.39222925,210.21,210.17,4.75794623]
[1759100605483,0.72,210.2,210.17,4.75794623]
[1759100605680,37.26,210.19,210.17,4.75794623]
[1759100605884,37.26,210.19,210.17,5.43794623]
[1759100606279,37.26,210.19,210.18,0.68]
[1759100606688,37.26,210.19,210.17,4.75794623]
[1759100606869,37.26,210.19,210.17,5.43794623]
[1759100607070,37.26,210.2,210.17,17.33307874]
[1759100607270,5.39222925,210.21,210.18,0.68]
[1759100607469,42.65222925,210.21,210.19,0.68]
[1759100607991,42.65222925,210.21,210.17,16.65307874]
[1759100608174,42.65222925,210.21,210.18,0.68]
[1759100608582,42.65222925,210.21,210.19,0.68]
[1759100609682,42.65222925,210.21,210.2,4.75737392]
[1759100610269,37.26,210.21,210.2,4.75737392]
[1759100610694,13.59559401,210.26,210.2,16.65080874]
[1759100610876,5.39222925,210.25,210.21,0.68]
[1759100611081,37.26,210.24,210.22,0.68]
[1759100611581,37.26,210.24,210.2,16.65080874]
[1759100611774,37.26,210.24,210.21,0.68]
[1759100611971,37.26,210.24,210.2,16.65080874]
[1759100612188,5.39222925,210.22,210.2,16.65080874]
[1759100612390,37.26,210.21,210.2,16.65080874]
[1759100612996,37.26,210.21,210.2,4.75737392]
[1759100613183,5.39222925,210.22,210.2,4.75737392]
[1759100613377,37.26,210.21,210.2,4.75737392]
[1759100613889,37.26,210.21,210.17,16.65301061]
[1759100614096,37.26,210.2,210.18,0.68]
[1759100614389,37.26,210.22,210.19,0.68]
[1759100614891,37.26,210.22,210.2,0.68]
[1759100615101,37.26,210.22,210.21,0.68]
[1759100616386,2.3756769,210.25,210.21,5.43714761]
[1759100616575,37.26,210.24,210.22,0.68]
[1759100616779,39.59559401,210.3,210.23,0.68]
[1759100617096,37.26,210.29,210.23,0.68]
[1759100617282,37.26,210.29,210.21,16.65001664]
[1759100617486,37.98,210.29,210.21,17.33001664]
[1759100617679,37.98,210.29,210.22,0.68]
[1759100618474,37.98,210.29,210.23,4.75669504]
[1759100618683,0.72,210.28,210.23,4.75669504]